fUSD/lending_fUSD_20260217
["ID","MTS","AMOUNT","RATE_DAILY","PERIOD"]
[405799304,1771323042531,-736.0,0.00011046,2]
[405799305,1771323042540,-3292.0,0.00011046,2]
[405799306,1771323042549,-823.0,0.00011046,2]
[405799307,1771323042560,-155.0,0.00011076,2]
[405799308,1771323042569,-500.0,0.00011096,2]
[405799309,1771323042579,-200.0,0.00011096,2]
[405799310,1771323042589,-200.0,0.00011096,2]
[405799311,1771323042598,-27737.69540561,0.00011099,2]
[405799312,1771323042608,-27737.69540553,0.00011099,2]
[405799313,1771323042617,-27737.69540553,0.00011099,2]
[405799314,1771323042627,-8685.08379471,0.00011099,2]
[405799315,1771323042636,-8685.08379471,0.00011099,2]
[405799316,1771323042646,-8685.08379471,0.00011099,2]
[405799317,1771323042656,-151.0,0.00011099,2]
[405799318,1771323042665,-151.0,0.00011099,2]
[405799319,1771323042675,-151.0,0.000111,2]
[405799320,1771323042684,-5814.85261277,0.00011135,2]
[405799321,1771323042694,-165.3,0.00011155,2]
[405799322,1771323042704,-300.0,0.00011288,2]
[405799323,1771323042713,-500.0,0.00011314,2]
[405799324,1771323042723,-500.97291215,0.00011327,2]
[405799325,1771323042732,-1000.0,0.00011327,2]
[405799326,1771323042742,-502.71949542,0.00011327,2]
[405799327,1771323042751,-643.23767655,0.00011327,2]
[405799328,1771323042761,-1000.0,0.00011327,2]
[405799329,1771323042770,-1000.0,0.00011327,2]
[405799330,1771323042779,-5530.0,0.000114,5]
[405799331,1771323042789,-8685.08379471,0.0001152,2]
[405799332,1771323042799,-27737.69540553,0.00011586,2]
[405799333,1771323042808,-500.0,0.00011588,2]
[405799334,1771323042900,-500.0,0.00011644,2]
[405799335,1771323042911,-200.0,0.00011644,2]
[405799336,1771323042920,-200.0,0.00011644,2]
[405799337,1771323042930,-165.3,0.00011742,2]
[405799338,1771323042941,-1600.0,0.00011853,2]
[405799339,1771323042950,-500.0,0.00011862,2]
[405799340,1771323042960,-1500.0,0.00011875,2]
[405799341,1771323042969,-1500.0,0.00011875,2]
[405799342,1771323042978,-1500.0,0.00011875,2]
[405799343,1771323042987,-30336.8,0.00012055,2]
[405799344,1771323042996,-155.0,0.00012083,2]
[405799345,1771323043005,-200.0,0.0001211,2]
[405799346,1771323043014,-500.0,0.00012136,2]
[405799347,1771323043022,-1252.0,0.0001215,2]
[405799348,1771323043030,-4609.0,0.00012151,2]
[405799349,1771323043038,-1152.0,0.00012151,2]
[405799350,1771323043046,-313.19,0.00012151,2]
[405799351,1771323043055,-476.439977,0.00012154,2]
[405799352,1771323043064,-2126.846725,0.00012181,2]
[405799353,1771323043073,-7677.822949,0.00012181,2]
[405799354,1771323043082,-500.0,0.00012192,2]
[405799355,1771323043090,-200.0,0.00012192,2]
[405799356,1771323043100,-200.0,0.00012192,2]
[405799357,1771323043109,-165.3,0.00012329,2]
[405799359,1771323043118,-500.0,0.0001241,2]
[405799360,1771323043126,-1799.80965345,0.00012423,2]
[405799361,1771323043135,-368.72151799,0.00012423,2]
[405799362,1771323043143,-2000.0,0.00012423,2]
[405799363,1771323043153,-500.0,0.00012429,2]
[405799364,1771323043161,-500.0,0.00012429,2]
[405799365,1771323043169,-500.0,0.00012429,2]
[405799366,1771323043177,-500.0,0.00012429,2]
[405799367,1771323043185,-578.20924308,0.00012429,2]
[405799368,1771323043194,-500.0,0.00012429,2]
[405799369,1771323043203,-177.7218892,0.00012429,2]
[405799370,1771323043212,-500.0,0.00012429,2]
[405799371,1771323043221,-500.0,0.00012429,2]
[405799372,1771323043230,-500.0,0.00012429,2]
[405799373,1771323043239,-209.40437684,0.00012429,2]
[405799374,1771323043248,-250.0,0.00012429,2]
[405799375,1771323043258,-500.0,0.00012429,2]
[405799376,1771323043267,-3000.0,0.00012429,2]
[405799377,1771323043276,-1421.82630279,0.00012429,2]
[405799378,1771323043285,-250.0,0.00012429,2]
[405799379,1771323043294,-151.12957794,0.00012429,2]
[405799380,1771323043303,-500.0,0.00012429,2]
[405799381,1771323043312,-3000.0,0.00012429,2]
[405799382,1771323043321,-250.0,0.00012429,2]
[405799383,1771323043331,-500.0,0.00012429,2]
[405799384,1771323043340,-3000.0,0.00012429,2]
[405799385,1771323043349,-253.83621088,0.00012429,2]
[405799386,1771323043358,-250.0,0.00012429,2]
[405799387,1771323043367,-500.0,0.00012429,2]
[405799388,1771323043376,-3000.0,0.00012429,2]
[405799389,1771323043385,-250.0,0.00012429,2]
[405799390,1771323043394,-500.0,0.00012429,2]
[405799391,1771323043403,-3000.0,0.00012429,2]
[405799392,1771323043411,-162.380719,0.00012429,2]
[405799393,1771323043421,-250.0,0.00012429,2]
[405799394,1771323043430,-500.0,0.00012429,2]
[405799395,1771323043439,-3000.0,0.00012429,2]
[405799396,1771323043448,-250.0,0.00012429,2]
[405799397,1771323043457,-500.0,0.00012429,2]
[405799398,1771323043466,-3000.0,0.00012429,2]
[405799399,1771323043475,-250.0,0.00012429,2]
[405799400,1771323043484,-500.0,0.00012429,2]
[405799401,1771323043493,-3099.28707761,0.00012429,2]
[405799402,1771323043502,-151.0,0.00012429,2]
[405799403,1771323043512,-500.0,0.00012429,2]
[405799404,1771323043521,-250.0,0.00012429,2]
[405799405,1771323043530,-500.0,0.00012429,2]
[405799406,1771323043540,-250.0,0.00012429,2]
[405799407,1771323043549,-500.0,0.00012429,2]
[405799408,1771323043558,-250.0,0.00012429,2]
[405799409,1771323043567,-279.55615727,0.00012429,2]
[405799410,1771323043577,-500.0,0.00012429,2]
[405799411,1771323043586,-160.0,0.00012429,2]
[405799412,1771323043595,-9552.16786547,0.00012429,2]
[405799413,1771323043606,-250.0,0.00012429,2]
[405799414,1771323043615,-250.0,0.00012429,2]
[405799415,1771323043626,-250.0,0.00012429,2]
[405799416,1771323043636,-250.0,0.00012429,2]
[405799417,1771323043645,-250.0,0.00012429,2]
[405799418,1771323043654,-250.0,0.00012429,2]
[405799419,1771323043663,-250.0,0.00012429,2]
[405799420,1771323043673,-250.0,0.00012429,2]
[405799421,1771323043682,-299.40346672,0.00012429,2]
[405799422,1771323043692,-250.0,0.00012429,2]
[405799423,1771323043701,-250.0,0.00012429,2]
[405799424,1771323043710,-250.0,0.00012429,2]
[405799425,1771323043720,-250.0,0.00012429,2]
[405799426,1771323043729,-250.0,0.00012429,2]
[405799427,1771323043737,-250.0,0.00012429,2]
[405799428,1771323043747,-250.0,0.00012429,2]
[405799429,1771323043756,-250.0,0.00012429,2]
[405799430,1771323043766,-1000.0,0.00012429,2]
[405799431,1771323043776,-250.0,0.00012429,2]
[405799432,1771323043787,-1000.0,0.00012429,2]
[405799433,1771323043797,-526.36214318,0.00012429,2]
[405799434,1771323043808,-151.0,0.00012429,2]
[405799435,1771323043818,-151.0,0.00012429,2]
[405799436,1771323043829,-151.0,0.00012429,2]
[405799437,1771323043839,-3000.0,0.00012429,2]
[405799438,1771323043848,-151.0,0.00012429,2]
[405799439,1771323043857,-3000.0,0.00012429,2]
[405799440,1771323043866,-151.0,0.00012429,2]
[405799441,1771323043875,-1070.81608438,0.00012429,2]
[405799442,1771323043885,-151.0,0.00012429,2]
[405799443,1771323043896,-151.0,0.00012429,2]
[405799444,1771323043905,-261.90795033,0.00012429,2]
[405799445,1771323043914,-693.3919763,0.00012429,2]
[405799446,1771323043925,-721.12765535,0.00012429,2]
[405799447,1771323043938,-250.0,0.00012429,2]
[405799448,1771323043949,-250.0,0.00012429,2]
[405799449,1771323043958,-250.0,0.00012429,2]
[405799450,1771323043967,-250.0,0.00012429,2]
[405799451,1771323043979,-302.70619241,0.00012429,2]
[405799452,1771323043990,-200.0,0.00012429,2]
[405799453,1771323044000,-250.0,0.00012429,2]
[405799454,1771323044012,-250.0,0.00012429,2]
[405799455,1771323044021,-250.0,0.00012429,2]
[405799456,1771323044030,-250.0,0.00012429,2]
[405799457,1771323044039,-250.0,0.00012429,2]
[405799458,1771323044048,-250.0,0.00012429,2]
[405799459,1771323044058,-250.0,0.00012429,2]
[405799460,1771323044067,-250.0,0.00012429,2]
[405799461,1771323044076,-250.0,0.00012429,2]
[405799462,1771323044086,-250.0,0.00012429,2]
[405799463,1771323044096,-250.0,0.00012429,2]
[405799464,1771323044105,-151.0,0.00012484,2]
[405799465,1771323044114,-9905.5980765,0.00012484,2]
[405799466,1771323044123,-719.04747942,0.00012484,2]
[405799467,1771323044134,-5814.85261277,0.00012488,2]
[405799468,1771323044143,-151.0,0.00012539,2]
[405799469,1771323044153,-10272.10520533,0.00012539,2]
[405799470,1771323044162,-745.65223616,0.00012539,2]
[405799471,1771323044173,-8685.08379471,0.00012583,2]
[405799472,1771323044182,-151.0,0.00012594,2]
[405799473,1771323044191,-2525.36664557,0.00012594,2]
[405799474,1771323044200,-773.2413689,0.00012594,2]
[405799475,1771323044209,-151.0,0.00012638,2]
[405799476,1771323044218,-1000.0,0.00012638,2]
[405799477,1771323044230,-1069.171485,0.00012638,2]
[405799478,1771323044239,-27737.69540553,0.00012638,2]
[405799479,1771323044249,-151.0,0.00012649,2]
[405799480,1771323044258,-801.85129955,0.00012649,2]
[405799481,1771323044268,-500.0,0.00012684,2]
[405799482,1771323044277,-151.0,0.00012704,2]
[405799483,1771323044286,-831.51979763,0.00012704,2]
[405799484,1771323044295,-503.55960548,0.0001274,2]
[405799485,1771323044304,-201.77822118,0.0001274,2]
[405799486,1771323044313,-201.41552809,0.0001274,2]
[405799487,1771323044322,-151.0,0.00012759,2]
[405799488,1771323044332,-862.28603014,0.00012759,2]
[405799489,1771323044341,-151.0,0.00012814,2]
[405799490,1771323044349,-894.19061326,0.00012814,2]
[405799491,1771323044358,-151.0,0.00012869,2]
[405799492,1771323044367,-927.27566595,0.00012869,2]
[405799493,1771323044376,-531.711679,0.00012888,2]
[405799494,1771323044385,-1919.422123,0.00012888,2]
[405799495,1771323044395,-151.0,0.00012924,2]
[405799496,1771323044403,-961.58486559,0.00012924,2]
[405799497,1771323044412,-337.87,0.00012949,2]
[405799498,1771323044421,-500.0,0.00012958,2]
[405799499,1771323044432,-2500.0,0.00012971,2]
[405799500,1771323044441,-217.15233878,0.00012977,2]
[405799501,1771323044451,-200.0,0.00012977,2]
[405799502,1771323044460,-151.0,0.00012979,2]
[405799503,1771323044469,-997.16350561,0.00012979,2]
[405799504,1771323044478,-151.0,0.00013034,2]
[405799505,1771323044487,-151.0,0.00013089,2]
[405799506,1771323044496,-151.0,0.00013144,2]
[405799507,1771323044505,-267.05598539,0.00013199,2]
[405799508,1771323044516,-500.0,0.00013232,2]
[405799509,1771323044527,-1140.61830984,0.00013257,2]
[405799510,1771323044536,-166585.883357,0.00013357,2]
[405799511,1771323044545,-153.344252,0.00013357,2]
[405799512,1771323044555,-174.1706724,0.00013357,2]
[405799513,1771323044564,-878.8390419,0.00013357,2]
[405799514,1771323044573,-37295.5098268,0.00013357,2]
[405799515,1771323044582,-441367.5997903,0.00013357,2]
[405799516,1771323044591,-151.0,0.00013357,2]
[405799517,1771323044601,-167.064397,0.00013357,2]
[405799518,1771323044610,-167.064397,0.00013357,2]
[405799519,1771323044619,-167.064397,0.00013357,2]
[405799520,1771323044628,-1783.60803,0.00013357,2]
[405799521,1771323044638,-167.064397,0.00013357,2]
[405799522,1771323044647,-1783.60803,0.00013357,2]
[405799523,1771323044656,-1783.60803,0.00013357,2]
[405799524,1771323044665,-1783.60803,0.00013357,2]
[405799525,1771323044675,-153.227768,0.00013357,2]
[405799526,1771323044684,-25638.6808593,0.00013358,2]
[405799527,1771323044694,-6453.0,0.00013366,2]
[405799528,1771323044703,-1613.0,0.00013366,2]
[405799529,1771323044712,-2129.0,0.0001337,2]
[405799530,1771323044722,-500.0,0.00013424,2]
[405799531,1771323044732,-150.0,0.00013424,2]
[405799532,1771323044744,-3240.0,0.00013425,2]
[405799533,1771323044753,-1576.69293966,0.00013461,2]
[405799534,1771323044762,-500.0,0.00013479,2]
[405799535,1771323044771,-150.37957529,0.00013479,2]
[405799536,1771323044781,-325.66480715,0.00013505,2]
[405799537,1771323044790,-3000.0,0.00013519,2]
[405799538,1771323044800,-297.18074641,0.00013525,2]
[405799539,1771323044812,-500.0,0.00013534,2]
[405799540,1771323044822,-947.1253165,0.00013536,2]
[405799541,1771323044832,-200.0,0.0001355,2]
[405799542,1771323044841,-200.0,0.0001355,2]
[405799543,1771323044852,-234.41696,0.0001355,2]
[405799544,1771323044862,-151.0,0.0001355,2]
[405799545,1771323044871,-200.0,0.0001355,2]
[405799546,1771323044880,-503.2248447,0.00013588,2]
[405799547,1771323044890,-4587.476,0.00013598,2]
[405799548,1771323044899,-8685.08379471,0.00013647,2]
[405799549,1771323044908,-7127.15,0.0001365,2]
[405799550,1771323044917,-200.0,0.00013685,2]
[405799551,1771323044930,-200.0,0.00013685,2]
[405799552,1771323044944,-27737.69540553,0.00013691,2]
[405799553,1771323044954,-500.0,0.00013698,2]
[405799554,1771323044963,-500.0,0.00013698,2]
[405799555,1771323044973,-500.0,0.00013698,2]
[405799556,1771323044983,-500.0,0.00013698,2]
[405799557,1771323044992,-500.0,0.00013698,2]
[405799558,1771323045002,-500.0,0.00013698,2]
[405799559,1771323045011,-500.0,0.00013698,2]
[405799560,1771323045020,-499.77619195,0.00013698,2]
[405799561,1771323045030,-500.0,0.00013698,2]
[405799562,1771323045040,-500.0,0.00013698,2]
[405799563,1771323045049,-500.0,0.00013698,2]
[405799564,1771323045059,-500.0,0.00013698,2]
[405799565,1771323045068,-388.47570654,0.00013698,2]
[405799566,1771323045078,-500.0,0.00013698,2]
[405799567,1771323045087,-500.0,0.00013698,2]
[405799568,1771323045097,-500.0,0.00013698,2]
[405799569,1771323045107,-500.0,0.00013698,2]
[405799570,1771323045116,-500.0,0.00013698,2]
[405799571,1771323045125,-500.0,0.00013698,2]
[405799572,1771323045136,-500.0,0.00013698,2]
[405799573,1771323045145,-500.0,0.00013698,2]
[405799574,1771323045155,-500.0,0.00013698,2]
[405799575,1771323045165,-505.24249427,0.00013698,2]
[405799576,1771323045175,-535.55684817,0.00013698,2]
[405799577,1771323045184,-500.0,0.00013698,2]
[405799578,1771323045195,-500.0,0.00013698,2]
[405799579,1771323045204,-506.79858148,0.00013698,2]
[405799581,1771323045213,-500.0,0.00013698,2]
[405799583,1771323045223,-639.90682726,0.00013698,2]
[405799585,1771323045232,-915.21,0.00013698,2]
[405799587,1771323045242,-915.21,0.00013698,2]
[405799588,1771323045251,-915.21,0.00013698,2]
[405799589,1771323045260,-915.21,0.00013698,2]
[405799590,1771323045270,-915.21,0.00013698,2]
[405799591,1771323045280,-915.21,0.00013698,2]
[405799592,1771323045290,-915.21,0.00013698,2]
[405799593,1771323045299,-500.0,0.00013698,2]
[405799594,1771323045309,-500.0,0.00013698,2]
[405799595,1771323045318,-500.0,0.00013698,2]
[405799596,1771323045328,-307.44205355,0.00013698,2]
[405799597,1771323045338,-500.0,0.00013698,2]
[405799598,1771323045348,-500.0,0.00013698,2]
[405799599,1771323045357,-500.0,0.00013698,2]
[405799600,1771323045367,-500.0,0.00013698,2]
[405799601,1771323045376,-500.0,0.00013698,2]
[405799602,1771323045386,-500.0,0.00013698,2]
[405799603,1771323045395,-500.0,0.00013698,2]
[405799604,1771323045405,-349.69131006,0.00013698,2]
[405799605,1771323045414,-500.0,0.00013698,2]
[405799606,1771323045425,-500.0,0.00013698,2]
[405799607,1771323045434,-500.0,0.00013698,2]
[405799608,1771323045444,-500.0,0.00013698,2]
[405799609,1771323045454,-511.5660924,0.00013698,2]
[405799610,1771323045463,-529.40507312,0.00013698,2]
[405799611,1771323045472,-500.0,0.00013698,2]
[405799612,1771323045482,-500.0,0.00013698,2]
[405799613,1771323045491,-500.0,0.00013698,2]
[405799614,1771323045501,-500.0,0.00013698,2]
[405799615,1771323045511,-500.0,0.00013698,2]
[405799616,1771323045520,-500.0,0.00013698,2]
[405799617,1771323045530,-500.0,0.00013698,2]
[405799618,1771323045540,-554.09,0.00013698,2]
[405799619,1771323045549,-554.09,0.00013698,2]
[405799620,1771323045559,-554.09,0.00013698,2]
[405799621,1771323045568,-554.09,0.00013698,2]
[405799622,1771323045578,-554.09,0.00013698,2]
[405799623,1771323045587,-554.09,0.00013698,2]
[405799624,1771323045597,-554.09,0.00013698,2]
[405799625,1771323045606,-500.0,0.00013698,2]
[405799626,1771323045617,-500.0,0.00013698,2]
[405799627,1771323045627,-500.0,0.00013698,2]
[405799628,1771323045636,-500.0,0.00013698,2]
[405799629,1771323045646,-500.0,0.00013698,2]
[405799630,1771323045656,-500.0,0.00013698,2]
[405799631,1771323045666,-500.0,0.00013698,2]
[405799632,1771323045677,-500.0,0.00013698,2]
[405799633,1771323045688,-500.0,0.00013698,2]
[405799634,1771323045698,-500.0,0.00013698,2]
[405799635,1771323045709,-500.0,0.00013698,2]
[405799636,1771323045719,-500.0,0.00013698,2]
[405799637,1771323045729,-500.0,0.00013698,2]
[405799638,1771323045739,-500.0,0.00013698,2]
[405799639,1771323045748,-500.0,0.00013698,2]
[405799640,1771323045758,-596.80603134,0.00013698,2]
[405799641,1771323045768,-804.11,0.00013698,2]
[405799642,1771323045778,-804.11,0.00013698,2]
[405799643,1771323045788,-804.11,0.00013698,2]
[405799644,1771323045798,-804.11,0.00013698,2]
[405799645,1771323045808,-804.11,0.00013698,2]
[405799646,1771323045818,-804.11,0.00013698,2]
[405799647,1771323045828,-804.11,0.00013698,2]
[405799648,1771323045838,-456.05800986,0.00013698,2]
[405799649,1771323045848,-500.0,0.00013698,2]
[405799650,1771323045858,-500.0,0.00013698,2]
[405799651,1771323045868,-500.0,0.00013698,2]
[405799652,1771323045878,-500.0,0.00013698,2]
[405799653,1771323045887,-500.0,0.00013698,2]
[405799654,1771323045897,-500.0,0.00013698,2]
[405799655,1771323045907,-500.0,0.00013698,2]
[405799656,1771323045918,-503.24510855,0.00013698,2]
[405799657,1771323045928,-500.0,0.00013698,2]
[405799658,1771323045942,-500.0,0.00013698,2]
[405799659,1771323045952,-500.0,0.00013698,2]
[405799660,1771323045961,-205.75338066,0.00013698,2]
[405799661,1771323045973,-500.0,0.00013698,2]
[405799662,1771323045983,-500.0,0.00013698,2]
[405799663,1771323045995,-500.0,0.00013698,2]
[405799664,1771323046007,-500.0,0.00013698,2]
[405799665,1771323046016,-500.0,0.00013698,2]
[405799666,1771323046028,-500.0,0.00013698,2]
[405799667,1771323046038,-500.0,0.00013698,2]
[405799668,1771323046048,-500.0,0.00013698,2]
[405799669,1771323046058,-500.0,0.00013698,2]
[405799670,1771323046068,-500.0,0.00013698,2]
[405799671,1771323046078,-500.0,0.00013698,2]
[405799672,1771323046089,-500.0,0.00013698,2]
[405799673,1771323046099,-500.0,0.00013698,2]
[405799674,1771323046109,-500.0,0.00013698,2]
[405799675,1771323046119,-500.0,0.00013698,2]
[405799676,1771323046129,-500.0,0.00013698,2]
[405799677,1771323046140,-161.76553767,0.00013698,2]
[405799678,1771323046150,-500.0,0.00013698,2]
[405799679,1771323046160,-500.0,0.00013698,2]
[405799680,1771323046170,-400.27334963,0.00013698,2]
[405799681,1771323046180,-500.0,0.00013698,2]
[405799682,1771323046190,-500.0,0.00013698,2]
[405799683,1771323046200,-500.0,0.00013698,2]
[405799684,1771323046210,-500.0,0.00013698,2]
[405799685,1771323046220,-500.0,0.00013698,2]
[405799686,1771323046230,-500.0,0.00013698,2]
[405799687,1771323046240,-500.0,0.00013698,2]
[405799688,1771323046251,-500.0,0.00013698,2]
[405799689,1771323046262,-500.0,0.00013698,2]
[405799690,1771323046272,-500.0,0.00013698,2]
[405799691,1771323046282,-500.0,0.00013698,2]
[405799692,1771323046295,-500.0,0.00013698,2]
[405799693,1771323046309,-500.0,0.00013698,2]
[405799694,1771323046319,-500.0,0.00013698,2]
[405799695,1771323046329,-500.0,0.00013698,2]
[405799696,1771323046339,-500.0,0.00013698,2]
[405799697,1771323046349,-500.0,0.00013698,2]
[405799698,1771323046359,-500.0,0.00013698,2]
[405799699,1771323046369,-500.0,0.00013698,2]
[405799700,1771323046378,-500.0,0.00013698,2]
[405799701,1771323046390,-500.0,0.00013698,2]
[405799702,1771323046400,-500.0,0.00013698,2]
[405799703,1771323046410,-500.0,0.00013698,2]
[405799704,1771323046420,-500.0,0.00013698,2]
[405799705,1771323046429,-500.0,0.00013698,2]
[405799706,1771323046439,-500.0,0.00013698,2]
[405799707,1771323046450,-500.0,0.00013698,2]
[405799708,1771323046461,-500.0,0.00013698,2]
[405799709,1771323046471,-500.0,0.00013698,2]
[405799710,1771323046481,-500.0,0.00013698,2]
[405799711,1771323046490,-500.0,0.00013698,2]
[405799712,1771323046501,-500.0,0.00013698,2]
[405799713,1771323046511,-500.0,0.00013698,2]
[405799714,1771323046521,-500.0,0.00013698,2]
[405799715,1771323046530,-500.0,0.00013698,2]
[405799716,1771323046540,-500.0,0.00013698,2]
[405799717,1771323046550,-500.0,0.00013698,2]
[405799718,1771323046559,-500.0,0.00013698,2]
[405799719,1771323046569,-500.0,0.00013698,2]
[405799720,1771323046579,-500.0,0.00013698,2]
[405799721,1771323046590,-500.0,0.00013698,2]
[405799722,1771323046599,-500.0,0.00013698,2]
[405799723,1771323046608,-500.0,0.00013698,2]
[405799724,1771323046618,-500.0,0.00013698,2]
[405799725,1771323046628,-500.0,0.00013698,2]
[405799726,1771323046637,-500.0,0.00013698,2]
[405799727,1771323046647,-500.0,0.00013698,2]
[405799728,1771323046657,-500.0,0.00013698,2]
[405799729,1771323046667,-500.0,0.00013698,2]
[405799730,1771323046676,-500.0,0.00013698,2]
[405799731,1771323046686,-500.0,0.00013698,2]
[405799732,1771323046695,-500.0,0.00013698,2]
[405799733,1771323046705,-500.0,0.00013698,2]
[405799734,1771323046716,-500.0,0.00013698,2]
[405799735,1771323046726,-500.0,0.00013698,2]
[405799736,1771323046735,-500.0,0.00013698,2]
[405799737,1771323046745,-197.6651859,0.00013698,2]
[405799738,1771323046756,-500.0,0.00013698,2]
[405799739,1771323046769,-500.0,0.00013698,2]
[405799740,1771323046779,-500.0,0.00013698,2]
[405799741,1771323046789,-522.2154278,0.00013698,2]
[405799742,1771323046798,-500.0,0.00013698,2]
[405799743,1771323046808,-500.0,0.00013698,2]
[405799744,1771323046818,-500.0,0.00013698,2]
[405799745,1771323046827,-500.0,0.00013698,2]
[405799746,1771323046837,-500.0,0.00013698,2]
[405799747,1771323046846,-500.0,0.00013698,2]
[405799748,1771323046856,-500.0,0.00013698,2]
[405799749,1771323046866,-500.0,0.00013698,2]
[405799750,1771323046875,-500.0,0.00013698,2]
[405799751,1771323046885,-500.0,0.00013698,2]
[405799752,1771323046895,-500.0,0.00013698,2]
[405799753,1771323046905,-500.0,0.00013698,2]
[405799754,1771323046914,-500.0,0.00013698,2]
[405799755,1771323046924,-500.0,0.00013698,2]
[405799756,1771323046937,-500.0,0.00013698,2]
[405799757,1771323046947,-500.0,0.00013698,2]
[405799758,1771323046957,-500.0,0.00013698,2]
[405799759,1771323046966,-460.46927555,0.00013698,2]
[405799760,1771323046975,-167.064397,0.00013698,2]
[405799761,1771323046985,-167.064397,0.00013698,2]
[405799762,1771323046995,-167.064397,0.00013698,2]
[405799763,1771323047004,-1783.60803,0.00013698,2]
[405799764,1771323047013,-167.064397,0.00013698,2]
[405799765,1771323047023,-1783.60803,0.00013698,2]
[405799766,1771323047033,-1783.60803,0.00013698,2]
[405799767,1771323047043,-1783.60803,0.00013698,2]
[405799768,1771323047052,-712.99,0.00013699,2]
[405799769,1771323047063,-151.0,0.00013699,2]
[405799770,1771323047073,-289.007678,0.00013699,2]
[405799771,1771323047083,-704.93,0.00013699,2]
[405799772,1771323047093,-157.404271,0.00013699,2]
[405799773,1771323047103,-157.404271,0.00013699,2]
[405799774,1771323047115,-157.404271,0.00013699,2]
[405799775,1771323047125,-157.404271,0.00013699,2]
[405799776,1771323047136,-157.404271,0.00013699,2]
[405799777,1771323047147,-157.404271,0.00013699,2]
[405799778,1771323047157,-157.404271,0.00013699,2]
[405799779,1771323047167,-157.404271,0.00013699,2]
[405799780,1771323047179,-151.0,0.00013699,2]
[405799781,1771323047191,-151.02878078,0.00013699,2]
[405799782,1771323047202,-702.05,0.000137,2]
[405799783,1771323047212,-702.05,0.000137,2]
[405799784,1771323047222,-510.58,0.000137,2]
[405799785,1771323047232,-510.58,0.000137,2]
[405799786,1771323047475,-510.58,0.000137,2]
[405799787,1771323047485,-510.58,0.000137,2]
[405799788,1771323047495,-510.58,0.000137,2]
[405799789,1771323047504,-510.58,0.000137,2]
[405799790,1771323047514,-510.58,0.000137,2]
[405799791,1771323047523,-510.58,0.000137,2]
[405799792,1771323047533,-510.58,0.000137,2]
[405799793,1771323047543,-510.58,0.000137,2]
[405799794,1771323047552,-510.6,0.000137,2]
[405799795,1771323047561,-22024.54,0.000137,2]
[405799796,1771323047570,-22024.54,0.000137,2]
[405799797,1771323047580,-168.3888056,0.00013798,2]
[405799798,1771323047589,-160.32510575,0.00013798,2]
[405799799,1771323047599,-200.0,0.00013822,2]
[405799800,1771323047608,-200.0,0.00013822,2]
[405799801,1771323047618,-5814.85261277,0.00013841,2]
[405799802,1771323047627,-200.0,0.00013961,2]
[405799803,1771323047636,-200.0,0.00013961,2]
[405799804,1771323047646,-846.3153877,0.00014067,2]
[405799805,1771323047656,-155.0,0.00014097,2]
[405799806,1771323047666,-200.0,0.000141,2]
[405799807,1771323047675,-200.0,0.000141,2]
[405799808,1771323047684,-313.19,0.00014178,2]